fUSD/lending_fUSD_20240606
["ID","MTS","AMOUNT","RATE_DAILY","PERIOD"]
[328691336,1717709466816,-500.0,0.00029863,4]
[328691337,1717709466826,-500.0,0.00029863,4]
[328691338,1717709466836,-500.0,0.00029863,4]
[328691339,1717709466846,-500.0,0.00029863,4]
[328691340,1717709466856,-500.0,0.00029863,4]
[328691341,1717709466866,-500.0,0.00029863,4]
[328691342,1717709466876,-500.0,0.00029863,4]
[328691343,1717709466886,-500.0,0.00029863,4]
[328691344,1717709466896,-500.0,0.00029863,4]
[328691345,1717709466906,-500.0,0.00029863,4]
[328691346,1717709466918,-500.0,0.00029863,4]
[328691347,1717709466928,-500.0,0.00029863,4]
[328691348,1717709466937,-500.0,0.00029863,4]
[328691349,1717709466947,-168.35,0.00029863,4]
[328691350,1717709466957,-500.0,0.00029863,4]
[328691351,1717709466967,-500.0,0.00029863,4]
[328691352,1717709466977,-500.0,0.00029863,4]
[328691353,1717709466986,-500.0,0.00029863,4]
[328691354,1717709466995,-500.0,0.00029863,4]
[328691355,1717709467005,-500.0,0.00029863,4]
[328691356,1717709467014,-500.0,0.00029863,4]
[328691357,1717709467024,-500.0,0.00029863,4]
[328691358,1717709467034,-500.0,0.00029863,4]
[328691359,1717709467045,-500.0,0.00029863,4]
[328691360,1717709467056,-256.80258057,0.00029863,4]
[328691361,1717709467066,-500.0,0.00029863,4]
[328691362,1717709467077,-500.0,0.00029863,4]
[328691363,1717709467087,-500.0,0.00029863,4]
[328691364,1717709467099,-500.0,0.00029863,4]
[328691365,1717709467109,-500.0,0.00029863,4]
[328691366,1717709467120,-500.0,0.00029863,4]
[328691367,1717709467130,-500.0,0.00029863,4]
[328691368,1717709467139,-500.0,0.00029863,4]
[328691369,1717709467149,-500.0,0.00029863,4]
[328691370,1717709467158,-566.97,0.00029863,4]
[328691371,1717709467168,-500.0,0.00029863,4]
[328691372,1717709467177,-500.0,0.00029863,4]
[328691373,1717709467186,-98.71494809,0.00029863,4]
[328691374,1717709467203,-247.18544689,0.00029863,4]
[328691375,1717709467212,-500.0,0.00029863,4]
[328691376,1717709467221,-500.0,0.00029863,4]
[328691377,1717709467230,-151.0,0.00029863,7]
[328691378,1717709467240,-500.0,0.00029863,4]
[328691379,1717709467248,-500.0,0.00029863,4]
[328691380,1717709467257,-151.0,0.00029863,7]
[328691381,1717709467267,-500.0,0.00029863,4]
[328691382,1717709467276,-500.0,0.00029863,4]
[328691383,1717709467286,-151.0,0.00029863,7]
[328691384,1717709467296,-500.0,0.00029863,4]
[328691385,1717709467305,-500.0,0.00029863,4]
[328691386,1717709467315,-151.0,0.00029863,7]
[328691387,1717709467324,-500.0,0.00029863,4]
[328691388,1717709467333,-500.0,0.00029863,4]
[328691389,1717709467343,-500.0,0.00029863,4]
[328691390,1717709467352,-500.0,0.00029863,4]
[328691391,1717709467362,-500.0,0.00029863,4]
[328691392,1717709467371,-500.0,0.00029863,4]
[328691393,1717709467381,-500.0,0.00029863,4]
[328691394,1717709467393,-343.77,0.00029863,4]
[328691395,1717709467404,-500.0,0.00029863,4]
[328691396,1717709467414,-155.33468874,0.00029863,2]
[328691397,1717709467423,-500.0,0.00029863,4]
[328691398,1717709467432,-500.0,0.00029863,4]
[328691399,1717709467442,-500.0,0.00029863,4]
[328691400,1717709467453,-500.0,0.00029863,4]
[328691401,1717709467462,-648.12,0.00029863,4]
[328691402,1717709467474,-500.0,0.00029863,4]
[328691403,1717709467484,-500.0,0.00029863,4]
[328691404,1717709467494,-263.48,0.00029863,4]
[328691405,1717709467599,-405.49031,0.00029863,2]
[328691406,1717709467612,-500.0,0.00029863,4]
[328691407,1717709467622,-500.0,0.00029863,4]
[328691408,1717709467632,-500.0,0.00029863,4]
[328691409,1717709467641,-500.0,0.00029863,4]
[328691410,1717709467650,-500.0,0.00029863,4]
[328691411,1717709467659,-500.0,0.00029863,4]
[328691412,1717709467670,-500.0,0.00029863,4]
[328691413,1717709467679,-213.48335761,0.00029863,4]
[328691414,1717709467688,-500.0,0.00029863,4]
[328691415,1717709467698,-500.0,0.00029863,4]
[328691416,1717709467707,-500.0,0.00029863,4]
[328691417,1717709467716,-500.0,0.00029863,4]
[328691418,1717709467725,-500.0,0.00029863,4]
[328691419,1717709467736,-500.0,0.00029863,4]
[328691420,1717709467746,-500.0,0.00029863,4]
[328691421,1717709467757,-425.04,0.00029863,4]
[328691422,1717709467767,-151.0,0.00029863,7]
[328691423,1717709467776,-500.0,0.00029863,4]
[328691424,1717709467785,-500.0,0.00029863,4]
[328691425,1717709467795,-500.0,0.00029863,4]
[328691426,1717709467804,-512.52116914,0.00029863,4]
[328691427,1717709467813,-500.0,0.00029863,4]
[328691428,1717709467822,-408.08,0.00029863,4]
[328691429,1717709467832,-500.0,0.00029863,4]
[328691430,1717709467842,-500.0,0.00029863,4]
[328691431,1717709467852,-500.0,0.00029863,4]
[328691432,1717709467861,-500.0,0.00029863,4]
[328691433,1717709467870,-512.38,0.00029863,4]
[328691434,1717709467880,-500.0,0.00029863,4]
[328691435,1717709467890,-500.0,0.00029863,4]
[328691436,1717709467899,-500.0,0.00029863,4]
[328691437,1717709467911,-500.0,0.00029863,4]
[328691438,1717709467921,-594.39,0.00029863,4]
[328691439,1717709467931,-167.4,0.00029863,4]
[328691440,1717709467940,-500.0,0.00029863,4]
[328691441,1717709467950,-500.0,0.00029863,4]
[328691442,1717709467959,-500.0,0.00029863,4]
[328691443,1717709467969,-500.0,0.00029863,4]
[328691444,1717709467979,-500.0,0.00029863,4]
[328691445,1717709467989,-500.0,0.00029863,4]
[328691446,1717709467998,-500.0,0.00029863,4]
[328691447,1717709468009,-500.0,0.00029863,4]
[328691448,1717709468020,-500.0,0.00029863,4]
[328691449,1717709468032,-500.0,0.00029863,4]
[328691450,1717709468041,-500.0,0.00029863,4]
[328691451,1717709468050,-500.0,0.00029863,4]
[328691452,1717709468059,-500.0,0.00029863,4]
[328691453,1717709468069,-500.0,0.00029863,4]
[328691454,1717709468079,-500.0,0.00029863,4]
[328691455,1717709468089,-500.0,0.00029863,4]
[328691456,1717709468101,-284.7172798,0.00029863,4]
[328691457,1717709468115,-215.2827202,0.00029863,4]
[328691458,1717709468126,-500.0,0.00029863,4]
[328691459,1717709468136,-500.0,0.00029863,4]
[328691460,1717709468145,-500.0,0.00029863,4]
[328691461,1717709468155,-500.0,0.00029863,4]
[328691462,1717709468164,-500.0,0.00029863,4]
[328691463,1717709468174,-257.9,0.00029863,4]
[328691464,1717709468183,-500.0,0.00029863,4]
[328691465,1717709468193,-576.12,0.00029863,4]
[328691466,1717709468202,-500.0,0.00029863,4]
[328691467,1717709468212,-500.0,0.00029863,4]
[328691468,1717709468222,-500.0,0.00029863,4]
[328691469,1717709468231,-601.86519693,0.00029863,4]
[328691470,1717709468241,-165.07057326,0.00029863,30]
[328691471,1717709468251,-327.27918573,0.0002987,2]
[328691472,1717709468260,-169.1104515,0.00029879,2]
[328691473,1717709468270,-500.0,0.00029886,4]
[328691474,1717709468279,-513.12,0.00029886,4]
[328691475,1717709468289,-829.06,0.00029886,4]
[328691476,1717709468298,-14550.10328398,0.00029887,2]
[328691477,1717709468310,-8455.29134922,0.00029887,2]
[328691478,1717709468320,-340.900322,0.00029887,7]
[328691479,1717709468330,-340.900322,0.00029887,7]
[328691480,1717709468340,-151.0,0.00029887,7]
[328691481,1717709468349,-154.49060541,0.00029892,2]
[328691482,1717709468359,-166.66666666,0.00029895,2]
[328691483,1717709468368,-500.0,0.00029899,4]
[328691484,1717709468379,-185.53,0.00029899,4]
[328691485,1717709468389,-500.0,0.00029899,4]
[328691486,1717709468398,-500.0,0.00029899,4]
[328691487,1717709468409,-567.2,0.00029899,4]
[328691488,1717709468418,-722.13,0.00029899,4]
[328691489,1717709468429,-150.0,0.00029899,10]
[328691490,1717709468439,-150.0,0.00029899,10]
[328691491,1717709468448,-32296.70753145,0.000299,7]
[328691492,1717709468458,-1807.07102798,0.000299,2]
[328691493,1717709468467,-160.90680567,0.000299,2]
[328691494,1717709468477,-151.08762494,0.000299,2]
[328691495,1717709468486,-416.44625693,0.000299,15]
[328691496,1717709468499,-16575.77834058,0.000299,15]
[328691497,1717709468508,-154.872752,0.000299,7]
[328691498,1717709468518,-1471.40497792,0.000299,2]
[328691499,1717709468530,-41.88198204,0.000299,2]
[328691500,1717709468539,-909.29301796,0.000299,2]
[328691505,1717709834061,472.11114986,0.00033319,30]
[328691506,1717709834208,164.92625516,0.00033319,120]
[328692567,1717710631654,-320.14584657,0.00013799,2]
[328692581,1717710631758,-308.4,0.00013799,2]
[328692584,1717710631770,-90.44312007,0.00013799,2]
[328692586,1717710631780,-300.0,0.000138,5]
[328692588,1717710631790,-646.83234034,0.000139,5]
[328692595,1717710631858,-53.16765966,0.000139,5]
[328692596,1717710631868,-962.50649377,0.000139,2]
[328692597,1717710631879,-1524.10623217,0.000139,2]
[328692598,1717710631954,-13.38727406,0.000139,2]
[328692599,1717710631964,-399.5407,0.000139,2]
[328692600,1717710631973,-540.28,0.0001397,2]
[328692601,1717710631983,-70604.94627579,0.0001398,2]
[328692602,1717710631993,-1445.63685371,0.00013989,2]
[328692603,1717710632002,-152.37,0.0001399,2]
[328692604,1717710632012,-191.26110393,0.0001399,2]
[328692605,1717710632021,-142716.49798281,0.00014,2]
[328692621,1717710640182,-329.27986993,0.00014,2]
[328692622,1717710640557,-2966.40735404,0.00014,2]
[328692625,1717710641914,-836.41963268,0.00014,2]
[328692626,1717710641926,-1089.17905755,0.00014,2]
[328692627,1717710641938,-2285.52652276,0.00014,2]
[328692628,1717710641949,-1357.87649926,0.00014,2]
[328692636,1717710642772,-1486.44995813,0.00014,2]
[328692647,1717710642875,-3920.82503814,0.00014,2]
[328692663,1717710643031,-36180.44794835,0.00014,2]
[328692664,1717710643046,-423663.76140096,0.00014,2]
[328692668,1717710646022,-400.57,0.00014,2]
[328692669,1717710646034,-276.70273799,0.00014,2]
[328692670,1717710646046,-105324.26798309,0.00014,2]
[328692671,1717710646058,-15788.55191136,0.00014,2]
[328692672,1717710646310,-1933.4589338,0.00014,2]
[328692685,1717711347295,-999.99174,0.00013322,2]
[328692690,1717711716397,513.26,0.00010818,2]
[328692698,1717711803671,150.0,0.00010818,2]
[328692699,1717711803896,150.0,0.00010818,2]
[328692704,1717711831979,-163.18081514,0.00012698,2]
[328692705,1717711831988,-120.92718546,0.00012698,2]
[328692706,1717711831999,-280.44188,0.00012698,2]
[328692707,1717711832011,-775.19666386,0.00012698,2]
[328692708,1717711832052,-99.93224388,0.00012698,2]
[328692709,1717711832062,-4441.68139867,0.00012699,2]
[328692710,1717711832072,-307.25477476,0.000127,2]
[328692711,1717711832082,-205.53087797,0.000127,2]
[328692712,1717711832091,-718.98896664,0.000127,2]
[328692713,1717711832101,-870.60763808,0.00012701,2]
[328692714,1717711832116,-1078.78165656,0.00012701,2]
[328692715,1717711832264,-503.15430007,0.00012701,2]
[328692716,1717711832284,-4064.0,0.00012701,2]
[328692717,1717711832299,-1000.37172,0.00012701,2]
[328692718,1717711832310,-377.48171877,0.00012701,2]
[328692719,1717711832322,-16005.60296652,0.00012701,2]
[328692720,1717711832332,-2611.20547856,0.00013056,2]
[328692721,1717711832342,-513.26,0.00013082,2]
[328692722,1717711832352,-438.81,0.00013291,2]
[328692723,1717711832361,-178.61,0.00013314,2]
[328692724,1717711832371,-539.52826,0.00013322,2]
[328692725,1717711832380,-438.81,0.00013327,2]
[328692726,1717711832390,-499.99,0.00013327,2]
[328692727,1717711832400,-1000.0,0.00013356,2]
[328692728,1717711832409,-558.35,0.00013356,2]
[328692729,1717711832418,-438.81,0.00013364,2]
[328692730,1717711832428,-438.81,0.000134,2]
[328692731,1717711832438,-438.81,0.00013437,2]
[328692732,1717711832448,-438.81,0.00013473,2]
[328692733,1717711832457,-438.81,0.00013509,2]
[328692734,1717711832466,-2607.96980762,0.00013533,2]
[328692735,1717711832479,-1553.22652393,0.00013533,2]
[328692736,1717711832500,-312.75876885,0.00013533,2]
[328692738,1717711832514,-2064.34630503,0.00013533,2]
[328692740,1717711832526,-1241.72374471,0.00013533,2]
[328692741,1717711832539,-32495.45484986,0.00013533,2]
[328692742,1717711832551,-438.81,0.00013546,2]
[328692743,1717711832561,-438.81,0.00013582,2]
[328692744,1717711832571,-1060.2317,0.00013617,2]
[328692745,1717711832583,-9341.2151,0.00013618,2]
[328692747,1717711832592,-2500.0,0.00013618,2]
[328692749,1717711832602,-2500.0,0.00013618,2]
[328692751,1717711832611,-438.81,0.00013619,2]
[328692753,1717711832621,-438.81,0.00013655,2]
[328692755,1717711832630,-438.81,0.00013692,2]
[328692757,1717711832640,-438.81,0.00013728,2]
[328692759,1717711832649,-186.96,0.00013754,2]
[328692761,1717711832658,-438.81,0.00013765,2]
[328692763,1717711832668,-300.0,0.000138,5]
[328692765,1717711832678,-438.81,0.00013801,2]
[328692767,1717711832687,-438.81,0.00013837,2]
[328692769,1717711832697,-438.81,0.00013874,2]
[328692771,1717711832707,-395.96328149,0.00013888,2]
[328692773,1717711832717,-152.32,0.00013888,2]
[328692775,1717711832727,-238807.30036239,0.00013898,2]
[328692777,1717711832739,-585.12658104,0.00013898,2]
[328692780,1717711832751,-578.0391,0.00013898,2]
[328692824,1717711837995,-307.25477476,0.00012697,2]
[328692825,1717711838005,-107383.11187601,0.00013898,2]
[328692826,1717711838017,-426.35735425,0.00013898,2]
[328692827,1717711838029,-1168.91354638,0.00013898,2]
[328692828,1717711838042,-1659.99434364,0.00013898,2]
[328692829,1717711838054,-2040.00565636,0.00013898,2]
[328692830,1717711838066,-527.14081138,0.00013898,2]
[328692831,1717711838077,-9476.42948143,0.00013898,2]
[328692832,1717711838089,-166283.26133144,0.00013898,2]
[328692833,1717711838101,-857.48160053,0.00013898,2]
[328692834,1717711838295,-1856.5631075,0.00013898,2]
[328692835,1717711838308,-1869.7443923,0.00013898,2]
[328692836,1717711838320,-2408.11629661,0.00013898,2]
[328692837,1717711838333,-10120.18943194,0.00013898,2]
[328692838,1717711838345,-572.78982099,0.00013898,2]
[328692839,1717711838356,-26381.86697472,0.00013898,2]
[328692840,1717711838368,-13610.12201707,0.00013898,2]
[328692841,1717711838380,-1110.7170805,0.00013898,2]
[328692842,1717711838391,-789.30350907,0.00013898,2]
[328692843,1717711838403,-28322.8141531,0.00013898,2]
[328692844,1717711838416,-7272.65439133,0.00013898,2]
[328692845,1717711838427,-32542.82611893,0.00013898,2]
[328692846,1717711838439,-2762.69559357,0.00013898,2]
[328692847,1717711838451,-31429.29929396,0.00013898,2]
[328692848,1717711838460,-174.5412,0.00013899,2]
[328692849,1717711838470,-1000.0,0.00013899,2]
[328692850,1717711838480,-53678.2171,0.00013899,2]
[328692851,1717711838490,-2500.0,0.00013899,2]
[328692852,1717711838501,-600.0,0.000139,5]
[328692853,1717711838514,-227.00525981,0.000139,2]
[328692855,1717711838523,-453.94161867,0.000139,2]
[328692857,1717711838533,-438.81,0.0001391,2]
[328692859,1717711838542,-438.81,0.00013947,2]
[328692861,1717711838554,-161.16864256,0.00013975,2]
[328692862,1717711838564,-183.28408522,0.00013975,2]
[328692863,1717711838573,-438.81,0.00013983,2]
[328692864,1717711838586,-3854.0749998,0.00013989,2]
[328692865,1717711838595,-152.32,0.0001399,2]
[328692866,1717711838605,-1000.0,0.00013999,5]
[328692867,1717711838615,-1000.0,0.00013999,5]
[328692868,1717711838626,-1000.0,0.00013999,5]
[328692869,1717711838636,-246.15590618,0.00013999,5]
[328692870,1717711838645,-749334.75536946,0.00014,2]
[328692871,1717711838657,-1192.76000006,0.00014,2]
[328692872,1717711838669,-1043.4,0.00014,2]
[328692873,1717711838680,-1010.92811315,0.00014,2]
[328692874,1717711838692,-23718.86507257,0.00014,2]
[328692875,1717711838702,-1166.99029,0.00014,2]
[328692877,1717711838712,-165.42920419,0.00014075,2]
[328692878,1717711838721,-5799.21016583,0.00014175,2]
[328692879,1717711838732,-150.0,0.00014575,2]
[328692880,1717711838742,-900.0,0.000148,5]
[328692881,1717711838752,-1200.0,0.000149,5]
[328692882,1717711838762,-219.09016274,0.000149,2]
[328692883,1717711838771,-419.16881121,0.000149,2]
[328692884,1717711838781,-599.29699399,0.00014985,2]
[328692885,1717711838790,-395.96328149,0.0001499,2]
[328692886,1717711838800,-395.96328149,0.0001499,2]
[328692887,1717711838810,-152.32,0.0001499,2]
[328692888,1717711838820,-152.32,0.0001499,2]
[328692889,1717711838830,-1066.6874522,0.00014998,2]
[328692890,1717711838839,-1650.07284561,0.00014998,2]
[328692891,1717711838850,-3917.88785453,0.00014998,2]
[328692892,1717711838860,-265.58837095,0.00014998,2]
[328692893,1717711838869,-227.00149485,0.00014998,2]
[328692894,1717711838879,-644.64661214,0.00014998,2]
[328692895,1717711838889,-5527.32530049,0.00014998,2]
[328692896,1717711838899,-2951.5118025,0.00014998,2]
[328692897,1717711838909,-200.12058988,0.00014998,2]
[328692898,1717711838918,-28441.13745096,0.00015,2]
[328692899,1717711838930,-446.62731363,0.00015,2]
[328692900,1717711838946,-7175.09138043,0.00015,2]
[328692901,1717711838957,-926.890117,0.00015,2]
[328692906,1717711841943,-21031.59728268,0.00015,2]
[328692918,1717711843138,-717.48148196,0.00014999,2]
[328692938,1717711843363,-13379.48542747,0.00015,2]
[328692942,1717711843397,-3525.33456,0.00015,2]
[328692943,1717711843408,-49331.94204876,0.00015,2]
[328692944,1717711843419,-98633.45953553,0.00015,2]
[328692945,1717711843430,-1691.57687281,0.00015,2]
[328692946,1717711843524,-1267.82998508,0.00015,2]
[328692947,1717711843701,-42350.42753889,0.00015,2]
[328692948,1717711843712,-1311.65320514,0.00015,2]
[328692949,1717711843724,-422.85267956,0.00015,2]
[328692951,1717711846473,-205.36847294,0.00014999,2]
[328692952,1717711846482,-53.97478255,0.00014999,2]
[328692953,1717711846494,-205.16344589,0.00014999,2]
[328692954,1717711846505,-310224.58179123,0.00015,2]
[328692955,1717711846520,-2588.34354534,0.00015,2]
[328692966,1717711957350,1999.699999,0.00033337,30]
[328692967,1717712048179,1760.0,0.00033337,30]
[328692970,1717712286748,524.09,0.00011453,2]
[328692971,1717712388297,-200.0,0.00031053,120]
[328692972,1717712388327,-1000.0,0.00031053,120]
[328692973,1717712388363,-150.0,0.00031657,120]
[328692974,1717712388391,-300.0,0.00031675,120]
[328692975,1717712388425,-150.0,0.00031994,120]
[328692985,1717712969430,497.88,0.00011232,2]
[328692991,1717713032173,-251.46384221,0.00013149,2]
[328692992,1717713032183,-345.51334506,0.0001315,2]
[328692993,1717713032192,-459.80590903,0.0001315,2]
[328692994,1717713032205,-65.22721026,0.0001315,2]
[328692995,1717713032216,-162.52861424,0.00013151,2]
[328692996,1717713032226,-428.04112893,0.00013151,2]
[328692997,1717713032266,-824.50033056,0.00013151,2]
[328692998,1717713032276,-155.0,0.00013152,2]
[328692999,1717713032286,-1794.60705698,0.00013152,2]
[328693000,1717713032298,-150.0,0.00013153,2]
[328693001,1717713032310,-269.07320624,0.00013153,2]
[328693002,1717713032319,-2006.60849381,0.00013153,2]
[328693003,1717713032328,-651.0,0.00013157,2]
[328693004,1717713032338,-500.0,0.0001316,2]
[328693005,1717713032347,-2315.10742076,0.00013164,2]
[328693006,1717713032359,-543.83019264,0.00013164,2]
[328693007,1717713032385,-2335.29723679,0.00013149,2]
[328693008,1717713032395,-5694.190843,0.00013164,2]
[328693009,1717713032407,-659.824,0.00013164,2]
[328693010,1717713032420,-639.09953959,0.00013164,2]
[328693011,1717713032432,-394.2204,0.00013164,2]
[328693012,1717713032477,-5293.43460712,0.00013164,2]
[328693013,1717713032490,-4001.00306798,0.00013164,2]
[328693014,1717713032500,-499.99,0.00013164,2]
[328693015,1717713032510,-278.26,0.00013164,2]
[328693016,1717713032520,-7127.14869,0.00013165,2]
[328693017,1717713032531,-1083.35584657,0.00013165,2]
[328693018,1717713032543,-854.8607206,0.00013165,2]
[328693019,1717713032556,-7499.01025656,0.00013165,2]
[328693020,1717713032589,-4334.02072546,0.00013165,2]
[328693021,1717713032601,-3001.60376081,0.00013165,2]
[328693022,1717713032611,-150.0,0.00013172,2]
[328693023,1717713032620,-499.99,0.00013209,2]
[328693024,1717713032631,-286.59,0.0001321,2]
[328693025,1717713032640,-250.0,0.0001322,2]
[328693026,1717713032649,-250.0,0.00013237,2]
[328693027,1717713032660,-2919.37,0.00013242,2]
[328693028,1717713032670,-151.46,0.00013245,2]
[328693029,1717713032679,-510.11,0.00013306,2]
[328693030,1717713032689,-327.28,0.00013328,2]
[328693031,1717713032700,-186.96,0.00013355,2]
[328693032,1717713032709,-155.0,0.00013422,2]
[328693033,1717713032718,-1234.57530883,0.00013423,2]
[328693034,1717713032728,-497.88,0.00013496,2]
[328693035,1717713032738,-323.88535798,0.00013689,2]
[328693036,1717713032747,-200.0,0.00013699,2]
[328693037,1717713032756,-500.0,0.00013699,2]
[328693038,1717713032766,-301.2,0.00013699,2]
[328693039,1717713032775,-2751.0,0.00013699,2]
[328693041,1717713032785,-1000.0,0.00013889,2]
[328693043,1717713032794,-210.0,0.00014468,2]
[328693045,1717713032805,-2632.73450962,0.000147,2]
[328693046,1717713032814,-173.16,0.00014709,2]
[328693047,1717713032823,-1034.8902,0.0001485,2]
[328693049,1717713032832,-257.7165,0.00014898,2]
[328693051,1717713032842,-4844.2935,0.00014899,2]
[328693053,1717713032852,-2211.4257,0.00014899,2]
[328693054,1717713032861,-5315.94265202,0.000149,2]
[328693056,1717713032870,-161.16864255,0.000149,2]
[328693057,1717713032882,-183.28408519,0.000149,2]
[328693058,1717713032891,-433.50057316,0.000149,2]
[328693059,1717713032900,-242.56121631,0.000149,2]
[328693060,1717713032910,-169.96634997,0.00014989,2]
[328693061,1717713032919,-152.24,0.0001499,2]
[328693062,1717713032930,-1948.20997556,0.00014997,2]
[328693063,1717713032939,-1088.32464123,0.00014998,2]
[328693064,1717713032949,-155.44974285,0.00014998,2]
[328693065,1717713032959,-156.62138287,0.00014998,2]
[328693066,1717713032969,-308.16975442,0.00014998,2]
[328693067,1717713032978,-254.20362507,0.00014998,2]
[328693068,1717713032988,-266.29978993,0.00014998,2]
[328693069,1717713032997,-4284.68586271,0.00014998,2]
[328693070,1717713033007,-723.98113567,0.00014998,2]
[328693071,1717713033016,-155.19970267,0.00014998,2]
[328693072,1717713033026,-155.0,0.00014998,2]
[328693073,1717713033035,-155.0,0.00014998,2]
[328693074,1717713033044,-195.42331331,0.00014998,2]
[328693075,1717713033054,-155.0,0.00014998,2]
[328693076,1717713033063,-237.7692352,0.00014998,2]
[328693077,1717713033072,-155.38075971,0.00014998,2]
[328693078,1717713033082,-475.77611098,0.00014998,2]
[328693079,1717713033092,-155.0,0.00014998,2]
[328693080,1717713033102,-155.0,0.00014998,2]
[328693081,1717713033111,-210.64268981,0.00014998,2]
[328693082,1717713033121,-155.0,0.00014998,2]
[328693083,1717713033131,-192.18649808,0.00014998,2]
[328693084,1717713033141,-406.08823349,0.00014998,2]
[328693085,1717713033150,-155.0,0.00014998,2]
[328693086,1717713033160,-155.49723229,0.00014998,2]
[328693087,1717713033170,-10958.18144295,0.00014998,2]
[328693088,1717713033179,-345.40971035,0.00014998,2]
[328693089,1717713033189,-156.93762487,0.00014998,2]
[328693090,1717713033198,-268.20766282,0.00014998,2]
[328693091,1717713033208,-291.07893599,0.00014998,2]
[328693092,1717713033218,-352005.48658073,0.00014999,2]
[328693093,1717713033231,-483.38441344,0.00014999,2]
[328693094,1717713033242,-338353.99323227,0.00014999,2]
[328693095,1717713033251,-203089.2448999,0.00015,2]
[328693096,1717713033263,-37627.52572184,0.00015,2]
[328693107,1717713038253,-257.82237684,0.00013149,2]
[328693108,1717713038265,-367.57552545,0.00013149,2]
[328693109,1717713038275,-534.57710773,0.00015,2]
[328693110,1717713038348,-22673.93070714,0.00015,2]
[328693111,1717713038361,-845.57482597,0.00015,2]
[328693112,1717713038373,-6185.98287592,0.00015,2]
[328693113,1717713038385,-304139.7701344,0.00015,2]
[328693114,1717713038443,-24874.27443899,0.00015,2]
[328693115,1717713038455,-130161.12386817,0.00015,2]
[328693116,1717713038467,-3314.4156,0.00015,2]
[328693117,1717713038539,-861.79091773,0.00015,2]
[328693118,1717713038551,-7531.70268872,0.00015,2]
[328693119,1717713038564,-2625.31380456,0.00015,2]
[328693120,1717713038576,-8495.17363692,0.00015,2]
[328693121,1717713038588,-687.05794941,0.00015,2]
[328693122,1717713038600,-1726.94125304,0.00015,2]
[328693123,1717713038646,-10131.1716183,0.00015,2]
[328693162,1717713042531,-169.96634997,0.0001499,2]
[328693163,1717713042540,-1472.85452961,0.00015,2]
[328693164,1717713042551,-748.72056136,0.00015,2]
[328693165,1717713042563,-1655.49692192,0.00015,2]
[328693166,1717713042575,-1332.97542958,0.00015,2]
[328693167,1717713042586,-1015.81864447,0.00015,2]
[328693168,1717713042602,-1413.38,0.00015,2]
[328693174,1717713042627,-508.58444147,0.00015,2]
[328693177,1717713042638,-1114.52501187,0.00015,2]
[328693259,1717713043398,-16282.94550113,0.00015,2]
[328693277,1717713043521,-302.23,0.00015,2]
[328693280,1717713043533,-300.1,0.00015,2]
[328693282,1717713043545,-301.132,0.00015,2]
[328693284,1717713043557,-274.264,0.00015,2]
[328693286,1717713043571,-309.865,0.00015,2]
[328693296,1717713043658,-390.60683015,0.00015,2]
[328693301,1717713043807,-536.28001313,0.00015,2]
[328693324,1717713046429,-1289.92506458,0.00015,2]
[328693325,1717713046570,-2353.38979589,0.00015,2]
[328693326,1717713046713,-806.9626216,0.00015,2]
[328693327,1717713046725,-14909.16239601,0.00015,2]
[328693334,1717713158044,1999.699999,0.0003332,30]
[328693335,1717713244032,6633.16954263,0.000118,2]
[328693336,1717713470294,-525.03311929,0.00013698,2]
[328693337,1717713470316,-3926.35,0.00013699,2]
[328693338,1717713470338,-404.06990715,0.00013738,2]
[328693339,1717713470360,-2678.99,0.00013739,2]